[Event "Titled Tuesday Blitz February 28 Early 2023"]
[White "Aradhya, Garg"]
[Black "Borrmann, Laurenz"]
[WhiteFideId "25006746"]
[BlackFideId "312187930"]
[WhiteElo "2278"]
[BlackElo "2307"]
[Result "0-1"]
[Round "05"]
[TimeControl "180+2"]
[Date "2023.02.28"]
[WhiteClock "0:00:16"]
[BlackClock "0:00:08"]

1. d4 {[%clk 0:03:00]}  Nf6 {[%clk 0:02:58]} 2. c4 {[%clk 0:03:01]}  e6 {[%clk 0:02:57]} 3. Nf3 {[%clk 0:03:01]}  Bb4+ {[%clk 0:02:54]} 4. Nbd2 {[%clk 0:03:01]}  O-O {[%clk 0:02:53]} 5. a3 {[%clk 0:03:01]}  Be7 {[%clk 0:02:54]} 6. e4 {[%clk 0:03:00]}  d6 {[%clk 0:02:50]} 7. Be2 {[%clk 0:03:00]}  b6 {[%clk 0:02:49]} 8. O-O {[%clk 0:02:56]}  e5 {[%clk 0:02:49]} 9. dxe5 {[%clk 0:02:38]}  dxe5 {[%clk 0:02:47]} 10. Nxe5 {[%clk 0:02:39]}  Bb7 {[%clk 0:02:45]} 11. Qc2 {[%clk 0:02:33]}  Bd6 {[%clk 0:02:42]} 12. Nef3 {[%clk 0:02:32]}  Nbd7 {[%clk 0:02:41]} 13. b4 {[%clk 0:02:28]}  Re8 {[%clk 0:02:37]} 14. Bd3 {[%clk 0:02:28]}  Ne5 {[%clk 0:02:29]} 15. Nxe5 {[%clk 0:02:27]}  Bxe5 {[%clk 0:02:28]} 16. Rb1 {[%clk 0:02:28]}  Bf4 {[%clk 0:01:16]} 17. Rd1 {[%clk 0:02:20]}  Bxd2 {[%clk 0:00:40]} 18. Rxd2 {[%clk 0:02:14]}  Nxe4 {[%clk 0:00:28]} 19. Re2 {[%clk 0:02:06]}  Nf6 {[%clk 0:00:25]} 20. Bg5 {[%clk 0:02:02]}  h6 {[%clk 0:00:26]} 21. Rxe8+ {[%clk 0:02:00]}  Qxe8 {[%clk 0:00:26]} 22. Bxf6 {[%clk 0:02:01]}  gxf6 {[%clk 0:00:26]} 23. c5 {[%clk 0:01:53]}  Rd8 {[%clk 0:00:23]} 24. Rd1 {[%clk 0:01:44]}  Bc6 {[%clk 0:00:14]} 25. Qd2 {[%clk 0:01:40]}  Kg7 {[%clk 0:00:13]} 26. Qc1 {[%clk 0:01:00]}  Ba4 {[%clk 0:00:10]} 27. Re1 {[%clk 0:01:00]}  Qd7 {[%clk 0:00:09]} 28. Be4 {[%clk 0:00:55]}  Qd2 {[%clk 0:00:08]} 29. h3 {[%clk 0:00:55]}  bxc5 {[%clk 0:00:04]} 30. bxc5 {[%clk 0:00:54]}  Qxc1 {[%clk 0:00:04]} 31. Rxc1 {[%clk 0:00:53]}  Rd4 {[%clk 0:00:04]} 32. f3 {[%clk 0:00:53]}  Bd7 {[%clk 0:00:03]} 33. c6 {[%clk 0:00:46]}  Be6 {[%clk 0:00:03]} 34. Rc5 {[%clk 0:00:47]}  Ra4 {[%clk 0:00:02]} 35. Rc3 {[%clk 0:00:47]}  f5 {[%clk 0:00:02]} 36. Bc2 {[%clk 0:00:46]}  Ra5 {[%clk 0:00:02]} 37. Kf2 {[%clk 0:00:46]}  Kf6 {[%clk 0:00:02]} 38. Ke3 {[%clk 0:00:46]}  Ke5 {[%clk 0:00:03]} 39. f4+ {[%clk 0:00:45]}  Kd6 {[%clk 0:00:03]} 40. Bd1 {[%clk 0:00:34]}  Rd5 {[%clk 0:00:02]} 41. Bf3 {[%clk 0:00:33]}  Rb5 {[%clk 0:00:02]} 42. Rd3+ {[%clk 0:00:33]}  Ke7 {[%clk 0:00:02]} 43. g4 {[%clk 0:00:32]}  fxg4 {[%clk 0:00:02]} 44. hxg4 {[%clk 0:00:33]}  f6 {[%clk 0:00:02]} 45. a4 {[%clk 0:00:29]}  Rc5 {[%clk 0:00:02]} 46. f5 {[%clk 0:00:23]}  Bc8 {[%clk 0:00:02]} 47. Rd4 {[%clk 0:00:22]}  Rc3+ {[%clk 0:00:01]} 48. Kf4 {[%clk 0:00:22]}  Rc5 {[%clk 0:00:01]} 49. Re4+ {[%clk 0:00:21]}  Kf7 {[%clk 0:00:02]} 50. Rb4 {[%clk 0:00:21]}  h5 {[%clk 0:00:02]} 51. Rb8 {[%clk 0:00:20]}  hxg4 {[%clk 0:00:02]} 52. Bxg4 {[%clk 0:00:21]}  Rc4+ {[%clk 0:00:02]} 53. Kg3 {[%clk 0:00:21]}  Ba6 {[%clk 0:00:02]} 54. Ra8 {[%clk 0:00:19]}  Rc3+ {[%clk 0:00:02]} 55. Kh4 {[%clk 0:00:19]}  Rxc6 {[%clk 0:00:02]} 56. Rxa7 {[%clk 0:00:19]}  Bd3 {[%clk 0:00:02]} 57. a5 {[%clk 0:00:17]}  Ke7 {[%clk 0:00:02]} 58. Kg3 {[%clk 0:00:17]}  Kd6 {[%clk 0:00:02]} 59. Bf3 {[%clk 0:00:17]}  Ra6 {[%clk 0:00:02]} 60. Rxa6+ {[%clk 0:00:16]}  Bxa6 {[%clk 0:00:03]} 61. Kf4 {[%clk 0:00:16]}  Kc5 {[%clk 0:00:02]} 62. Kg4 {[%clk 0:00:16]}  Kd4 {[%clk 0:00:01]} 63. Kh5 {[%clk 0:00:16]}  Ke5 {[%clk 0:00:01]} 64. Kg6 {[%clk 0:00:16]}  Bd3 {[%clk 0:00:02]} 65. Bg4 {[%clk 0:00:16]}  c5 {[%clk 0:00:02]} 66. Kf7 {[%clk 0:00:14]}  Ba6 {[%clk 0:00:02]} 67. Ke7 {[%clk 0:00:13]}  c4 {[%clk 0:00:02]} 68. Kd7 {[%clk 0:00:12]}  c3 {[%clk 0:00:02]} 69. Bd1 {[%clk 0:00:12]}  Kd5 {[%clk 0:00:02]} 70. Ke7 {[%clk 0:00:12]}  Ke5 {[%clk 0:00:02]} 71. Kd7 {[%clk 0:00:12]}  Bd3 {[%clk 0:00:03]} 72. Kc6 {[%clk 0:00:12]}  c2 {[%clk 0:00:03]} 73. Bxc2 {[%clk 0:00:08]}  Bxc2 {[%clk 0:00:04]} 74. a6 {[%clk 0:00:08]}  Kxf5 {[%clk 0:00:04]} 75. Kd5 {[%clk 0:00:07]}  Be4+ {[%clk 0:00:04]} 76. Kd4 {[%clk 0:00:07]}  Ba8 {[%clk 0:00:05]} 77. Ke3 {[%clk 0:00:07]}  Kg4 {[%clk 0:00:05]} 78. Kf2 {[%clk 0:00:07]}  Kf4 {[%clk 0:00:06]} 79. Ke2 {[%clk 0:00:07]}  f5 {[%clk 0:00:07]} 80. Kf2 {[%clk 0:00:07]}  Kg4 {[%clk 0:00:07]} 81. Ke3 {[%clk 0:00:08]}  Kg3 {[%clk 0:00:07]} 82. Kd4 {[%clk 0:00:09]}  f4 {[%clk 0:00:07]} 83. Kc5 {[%clk 0:00:09]}  f3 {[%clk 0:00:08]} 84. Kb6 {[%clk 0:00:10]}  f2 {[%clk 0:00:08]} 85. Ka7 {[%clk 0:00:11]}  Bg2 {[%clk 0:00:08]} 86. Kb8 {[%clk 0:00:11]}  f1=Q {[%clk 0:00:09]} 87. a7 {[%clk 0:00:12]}  Qf7 {[%clk 0:00:07]} 88. a8=Q {[%clk 0:00:11]}  Bxa8 {[%clk 0:00:06]} 89. Kxa8 {[%clk 0:00:11]}  Qd7 {[%clk 0:00:06]} 90. Kb8 {[%clk 0:00:12]}  Kf4 {[%clk 0:00:07]} 91. Ka8 {[%clk 0:00:13]}  Ke5 {[%clk 0:00:08]} 92. Kb8 {[%clk 0:00:14]}  Kd6 {[%clk 0:00:08]} 93. Ka8 {[%clk 0:00:15]}  Kc6 {[%clk 0:00:08]} 94. Kb8 {[%clk 0:00:16]}  Qb7# {[%clk 0:00:08]} 0-1


[Site "https://www.chess.com"]

[Event "Titled Tuesday Blitz February 28 Early 2023"]
[White "Taboas Rodriguez, Daniel"]
[Black "Subelj, Jan"]
[WhiteFideId "2208466"]
[BlackFideId "14618583"]
[WhiteElo "2365"]
[BlackElo "2480"]
[Result "0-1"]
[Round "05"]
[TimeControl "180+2"]
[Date "2023.02.28"]
[WhiteClock "0:00:09"]
[BlackClock "0:01:16"]

1. d4 {[%clk 0:02:59]}  d5 {[%clk 0:02:59]} 2. c4 {[%clk 0:02:59]}  e6 {[%clk 0:02:55]} 3. Nc3 {[%clk 0:02:56]}  Bb4 {[%clk 0:02:53]} 4. a3 {[%clk 0:02:47]}  Bxc3+ {[%clk 0:02:51]} 5. bxc3 {[%clk 0:02:48]}  c5 {[%clk 0:02:50]} 6. e3 {[%clk 0:02:46]}  dxc4 {[%clk 0:02:43]} 7. Bxc4 {[%clk 0:02:46]}  Qc7 {[%clk 0:02:43]} 8. Be2 {[%clk 0:02:39]}  b6 {[%clk 0:02:41]} 9. Bf3 {[%clk 0:02:38]}  Bb7 {[%clk 0:02:41]} 10. a4 {[%clk 0:02:34]}  Nd7 {[%clk 0:02:37]} 11. Bxb7 {[%clk 0:02:30]}  Qxb7 {[%clk 0:02:38]} 12. Nf3 {[%clk 0:02:30]}  Ne7 {[%clk 0:02:32]} 13. O-O {[%clk 0:02:30]}  O-O {[%clk 0:02:32]} 14. a5 {[%clk 0:02:31]}  Rac8 {[%clk 0:02:30]} 15. Ba3 {[%clk 0:02:30]}  Rfd8 {[%clk 0:02:29]} 16. Qb3 {[%clk 0:02:29]}  Nc6 {[%clk 0:02:12]} 17. axb6 {[%clk 0:02:27]}  Qxb6 {[%clk 0:02:13]} 18. Rfb1 {[%clk 0:02:23]}  Qxb3 {[%clk 0:02:12]} 19. Rxb3 {[%clk 0:02:24]}  Rb8 {[%clk 0:02:10]} 20. Rxb8 {[%clk 0:02:23]}  Rxb8 {[%clk 0:02:11]} 21. Bxc5 {[%clk 0:02:22]}  Nxc5 {[%clk 0:02:11]} 22. dxc5 {[%clk 0:02:23]}  e5 {[%clk 0:02:06]} 23. g4 {[%clk 0:02:15]}  Rb5 {[%clk 0:02:05]} 24. c4 {[%clk 0:01:55]}  Rxc5 {[%clk 0:02:05]} 25. Nd2 {[%clk 0:01:55]}  f6 {[%clk 0:02:02]} 26. Ra4 {[%clk 0:01:54]}  Ra5 {[%clk 0:02:01]} 27. Rxa5 {[%clk 0:01:49]}  Nxa5 {[%clk 0:02:02]} 28. Kf1 {[%clk 0:01:50]}  Nc6 {[%clk 0:02:02]} 29. Ke2 {[%clk 0:01:50]}  Kf7 {[%clk 0:02:01]} 30. Kd3 {[%clk 0:01:50]}  Ke6 {[%clk 0:02:01]} 31. Nb3 {[%clk 0:01:47]}  Kd6 {[%clk 0:02:01]} 32. c5+ {[%clk 0:01:46]}  Kd5 {[%clk 0:02:01]} 33. e4+ {[%clk 0:01:46]}  Ke6 {[%clk 0:02:01]} 34. Kc4 {[%clk 0:01:47]}  a6 {[%clk 0:02:00]} 35. h4 {[%clk 0:01:39]}  g6 {[%clk 0:01:52]} 36. h5 {[%clk 0:01:39]}  gxh5 {[%clk 0:01:48]} 37. gxh5 {[%clk 0:01:40]}  h6 {[%clk 0:01:48]} 38. f3 {[%clk 0:01:34]}  Ke7 {[%clk 0:01:45]} 39. Kd5 {[%clk 0:01:29]}  Kd7 {[%clk 0:01:45]} 40. Kc4 {[%clk 0:01:06]}  Ke6 {[%clk 0:01:45]} 41. Nd2 {[%clk 0:01:05]}  Ne7 {[%clk 0:01:36]} 42. Kb4 {[%clk 0:00:58]}  Nc6+ {[%clk 0:01:36]} 43. Kc4 {[%clk 0:00:58]}  Ke7 {[%clk 0:01:26]} 44. Kd5 {[%clk 0:00:57]}  Kd7 {[%clk 0:01:26]} 45. Nb3 {[%clk 0:00:52]}  Nb4+ {[%clk 0:01:21]} 46. Kc4 {[%clk 0:00:52]}  Nc2 {[%clk 0:01:22]} 47. Kd3 {[%clk 0:00:30]}  Ne1+ {[%clk 0:01:21]} 48. Ke2 {[%clk 0:00:30]}  Ng2 {[%clk 0:01:21]} 49. Na5 {[%clk 0:00:19]}  Nf4+ {[%clk 0:01:20]} 50. Kf2 {[%clk 0:00:19]}  Nxh5 {[%clk 0:01:20]} 51. Nc4 {[%clk 0:00:19]}  Kc6 {[%clk 0:01:18]} 52. Nd6 {[%clk 0:00:17]}  Kxc5 {[%clk 0:01:18]} 53. Nf5 {[%clk 0:00:18]}  a5 {[%clk 0:01:18]} 54. Nxh6 {[%clk 0:00:19]}  a4 {[%clk 0:01:19]} 55. Nf5 {[%clk 0:00:16]}  a3 {[%clk 0:01:17]} 56. Ne3 {[%clk 0:00:16]}  a2 {[%clk 0:01:17]} 57. Nc2 {[%clk 0:00:17]}  Kc4 {[%clk 0:01:18]} 58. Ke3 {[%clk 0:00:14]}  Kc3 {[%clk 0:01:17]} 59. Na1 {[%clk 0:00:14]}  Kb2 {[%clk 0:01:17]} 60. Kd2 {[%clk 0:00:15]}  Kxa1 {[%clk 0:01:18]} 61. Kc2 {[%clk 0:00:10]}  Nf4 {[%clk 0:01:17]} 62. Kc1 {[%clk 0:00:09]}  Nd3+ {[%clk 0:01:16]} 0-1


[Site "https://www.chess.com"]

[Event "Titled Tuesday Blitz February 28 Early 2023"]
[White "Kopczynski, Michal"]
[Black "Md, Imran"]
[WhiteFideId "1124200"]
[BlackFideId "25748580"]
[WhiteElo "2212"]
[BlackElo "2217"]
[Result "1-0"]
[Round "05"]
[TimeControl "180+2"]
[Date "2023.02.28"]
[WhiteClock "0:00:18"]
[BlackClock "0:00:18"]

1. e4 {[%clk 0:03:00]}  c5 {[%clk 0:02:58]} 2. d4 {[%clk 0:03:00]}  cxd4 {[%clk 0:02:58]} 3. c3 {[%clk 0:03:01]}  d5 {[%clk 0:02:57]} 4. exd5 {[%clk 0:03:00]}  Qxd5 {[%clk 0:02:56]} 5. cxd4 {[%clk 0:03:01]}  Nf6 {[%clk 0:02:52]} 6. Nf3 {[%clk 0:03:01]}  Bg4 {[%clk 0:02:49]} 7. Be2 {[%clk 0:03:01]}  Nc6 {[%clk 0:02:47]} 8. Nc3 {[%clk 0:03:00]}  Qa5 {[%clk 0:02:46]} 9. O-O {[%clk 0:03:00]}  e6 {[%clk 0:02:43]} 10. h3 {[%clk 0:03:00]}  Bh5 {[%clk 0:02:35]} 11. Be3 {[%clk 0:03:00]}  Bb4 {[%clk 0:02:34]} 12. Rc1 {[%clk 0:03:00]}  O-O {[%clk 0:02:34]} 13. a3 {[%clk 0:03:00]}  Be7 {[%clk 0:02:31]} 14. Qb3 {[%clk 0:02:56]}  Rfc8 {[%clk 0:02:12]} 15. Rfd1 {[%clk 0:02:54]}  Qd8 {[%clk 0:01:58]} 16. Rd2 {[%clk 0:01:58]}  Na5 {[%clk 0:01:56]} 17. Qa4 {[%clk 0:01:49]}  a6 {[%clk 0:01:51]} 18. d5 {[%clk 0:01:31]}  Nxd5 {[%clk 0:01:45]} 19. Rcd1 {[%clk 0:01:26]}  b5 {[%clk 0:01:26]} 20. Qe4 {[%clk 0:01:22]}  Bg6 {[%clk 0:01:25]} 21. Qg4 {[%clk 0:01:17]}  Rxc3 {[%clk 0:01:07]} 22. bxc3 {[%clk 0:01:14]}  Qc7 {[%clk 0:01:05]} 23. Bd4 {[%clk 0:01:06]}  h5 {[%clk 0:01:04]} 24. Qg3 {[%clk 0:00:59]}  Qxg3 {[%clk 0:00:49]} 25. fxg3 {[%clk 0:01:00]}  Nb3 {[%clk 0:00:45]} 26. Rb2 {[%clk 0:00:44]}  Nxd4 {[%clk 0:00:45]} 27. cxd4 {[%clk 0:00:42]}  Bxa3 {[%clk 0:00:45]} 28. Ra2 {[%clk 0:00:40]}  b4 {[%clk 0:00:39]} 29. Rda1 {[%clk 0:00:35]}  Nc3 {[%clk 0:00:37]} 30. Rd2 {[%clk 0:00:35]}  Nxe2+ {[%clk 0:00:24]} 31. Rxe2 {[%clk 0:00:36]}  Rc8 {[%clk 0:00:23]} 32. Ne5 {[%clk 0:00:36]}  a5 {[%clk 0:00:20]} 33. Nxg6 {[%clk 0:00:33]}  fxg6 {[%clk 0:00:21]} 34. Rxe6 {[%clk 0:00:33]}  b3 {[%clk 0:00:21]} 35. Rxa3 {[%clk 0:00:29]}  b2 {[%clk 0:00:21]} 36. Rb6 {[%clk 0:00:28]}  Rc1+ {[%clk 0:00:19]} 37. Kf2 {[%clk 0:00:29]}  b1=Q {[%clk 0:00:20]} 38. Rxb1 {[%clk 0:00:29]}  Rxb1 {[%clk 0:00:21]} 39. Rxa5 {[%clk 0:00:29]}  Rb2+ {[%clk 0:00:22]} 40. Kf3 {[%clk 0:00:30]}  Rb3+ {[%clk 0:00:22]} 41. Kf4 {[%clk 0:00:30]}  Kh7 {[%clk 0:00:23]} 42. d5 {[%clk 0:00:29]}  g5+ {[%clk 0:00:22]} 43. Kxg5 {[%clk 0:00:26]}  Rxg3+ {[%clk 0:00:22]} 44. Kxh5 {[%clk 0:00:26]}  Rxg2 {[%clk 0:00:21]} 45. d6 {[%clk 0:00:24]}  Rd2 {[%clk 0:00:21]} 46. Ra6 {[%clk 0:00:23]}  Rd5+ {[%clk 0:00:21]} 47. Kg4 {[%clk 0:00:22]}  Kh6 {[%clk 0:00:21]} 48. Kf4 {[%clk 0:00:23]}  Rd1 {[%clk 0:00:21]} 49. Ke5 {[%clk 0:00:23]}  Kg6 {[%clk 0:00:20]} 50. Ke6 {[%clk 0:00:23]}  Re1+ {[%clk 0:00:19]} 51. Kd7 {[%clk 0:00:23]}  Kf7 {[%clk 0:00:20]} 52. Ra2 {[%clk 0:00:21]}  Rf1 {[%clk 0:00:20]} 53. Kd8 {[%clk 0:00:19]}  Ke6 {[%clk 0:00:17]} 54. d7 {[%clk 0:00:19]}  Rf8+ {[%clk 0:00:17]} 55. Kc7 {[%clk 0:00:19]}  Rf7 {[%clk 0:00:18]} 56. Re2+ {[%clk 0:00:18]} 1-0


[Site "https://www.chess.com"]

[Event "Titled Tuesday Blitz February 28 Early 2023"]
[White "Averjanov, Alexey"]
[Black "Bilan, Danila"]
[WhiteFideId "14109867"]
[BlackFideId "24161918"]
[WhiteElo "2650"]
[BlackElo "2182"]
[Result "1-0"]
[Round "05"]
[TimeControl "180+2"]
[Date "2023.02.28"]
[WhiteClock "0:01:15"]
[BlackClock "0:00:07"]

1. d4 {[%clk 0:03:00]}  d5 {[%clk 0:03:00]} 2. c4 {[%clk 0:02:59]}  c6 {[%clk 0:03:00]} 3. e3 {[%clk 0:02:59]}  Nf6 {[%clk 0:02:59]} 4. Bd3 {[%clk 0:02:56]}  e6 {[%clk 0:02:40]} 5. Nd2 {[%clk 0:02:55]}  Nbd7 {[%clk 0:02:39]} 6. Ngf3 {[%clk 0:02:55]}  Bd6 {[%clk 0:02:37]} 7. O-O {[%clk 0:02:54]}  O-O {[%clk 0:02:37]} 8. e4 {[%clk 0:02:53]}  dxe4 {[%clk 0:02:37]} 9. Nxe4 {[%clk 0:02:54]}  Nxe4 {[%clk 0:02:37]} 10. Bxe4 {[%clk 0:02:55]}  Nf6 {[%clk 0:02:20]} 11. Bc2 {[%clk 0:02:55]}  h6 {[%clk 0:02:20]} 12. b3 {[%clk 0:02:53]}  Qe7 {[%clk 0:02:18]} 13. Qe2 {[%clk 0:02:51]}  b6 {[%clk 0:02:09]} 14. Bb2 {[%clk 0:02:50]}  Ba3 {[%clk 0:02:05]} 15. Bc3 {[%clk 0:02:49]}  Bb4 {[%clk 0:02:04]} 16. Bb2 {[%clk 0:02:49]}  Ba3 {[%clk 0:02:04]} 17. Bxa3 {[%clk 0:02:47]}  Qxa3 {[%clk 0:02:05]} 18. Rad1 {[%clk 0:02:47]}  Bb7 {[%clk 0:01:59]} 19. Bb1 {[%clk 0:02:46]}  Rad8 {[%clk 0:01:51]} 20. Ne5 {[%clk 0:02:43]}  c5 {[%clk 0:01:43]} 21. Qe3 {[%clk 0:02:41]}  cxd4 {[%clk 0:01:36]} 22. Rxd4 {[%clk 0:02:42]}  Qc5 {[%clk 0:01:27]} 23. Rfd1 {[%clk 0:02:36]}  Rxd4 {[%clk 0:01:21]} 24. Qxd4 {[%clk 0:02:37]}  Qxd4 {[%clk 0:01:11]} 25. Rxd4 {[%clk 0:02:38]}  Rc8 {[%clk 0:01:05]} 26. f3 {[%clk 0:02:32]}  Kf8 {[%clk 0:01:00]} 27. Nd7+ {[%clk 0:02:27]}  Ke7 {[%clk 0:00:58]} 28. Nxf6 {[%clk 0:02:26]}  gxf6 {[%clk 0:00:58]} 29. Kf2 {[%clk 0:02:26]}  f5 {[%clk 0:00:51]} 30. g3 {[%clk 0:02:20]}  Bc6 {[%clk 0:00:49]} 31. f4 {[%clk 0:02:16]}  Rd8 {[%clk 0:00:41]} 32. Ke3 {[%clk 0:02:13]}  a5 {[%clk 0:00:36]} 33. Rxd8 {[%clk 0:02:11]}  Kxd8 {[%clk 0:00:37]} 34. Kd4 {[%clk 0:02:11]}  Ke7 {[%clk 0:00:33]} 35. a3 {[%clk 0:02:09]}  Kd6 {[%clk 0:00:27]} 36. b4 {[%clk 0:02:08]}  axb4 {[%clk 0:00:28]} 37. axb4 {[%clk 0:02:09]}  f6 {[%clk 0:00:22]} 38. c5+ {[%clk 0:02:08]}  bxc5+ {[%clk 0:00:23]} 39. bxc5+ {[%clk 0:02:09]}  Kd7 {[%clk 0:00:23]} 40. Ba2 {[%clk 0:02:05]}  Ke7 {[%clk 0:00:23]} 41. Bc4 {[%clk 0:02:03]}  Kd7 {[%clk 0:00:23]} 42. h3 {[%clk 0:01:58]}  Ke7 {[%clk 0:00:22]} 43. Kc3 {[%clk 0:01:32]}  Kd7 {[%clk 0:00:20]} 44. Kb4 {[%clk 0:01:31]}  e5 {[%clk 0:00:16]} 45. Bf7 {[%clk 0:01:28]}  Bg2 {[%clk 0:00:14]} 46. h4 {[%clk 0:01:26]}  e4 {[%clk 0:00:12]} 47. Kc4 {[%clk 0:01:24]}  Bh3 {[%clk 0:00:08]} 48. Kd4 {[%clk 0:01:22]}  Bg4 {[%clk 0:00:05]} 49. Bd5 {[%clk 0:01:19]}  Kc7 {[%clk 0:00:05]} 50. Be6 {[%clk 0:01:17]}  Bf3 {[%clk 0:00:05]} 51. Bxf5 {[%clk 0:01:14]}  Kc6 {[%clk 0:00:05]} 52. Bxe4+ {[%clk 0:01:14]}  Bxe4 {[%clk 0:00:06]} 53. Kxe4 {[%clk 0:01:15]}  Kxc5 {[%clk 0:00:07]} 54. Kf5 {[%clk 0:01:15]} 1-0


[Site "https://www.chess.com"]

[Event "Titled Tuesday Blitz February 28 Early 2023"]
[White "Spata, German"]
[Black "Yurasova, Daria"]
[WhiteFideId "113026"]
[BlackFideId "34146919"]
[WhiteElo "2238"]
[BlackElo "2134"]
[Result "1-0"]
[Round "05"]
[TimeControl "180+2"]
[Date "2023.02.28"]
[WhiteClock "0:00:09"]
[BlackClock "0:00:18"]

1. Nf3 {[%clk 0:02:28]}  d5 {[%clk 0:02:59]} 2. d4 {[%clk 0:02:28]}  Nf6 {[%clk 0:03:00]} 3. c3 {[%clk 0:02:28]}  Bf5 {[%clk 0:03:00]} 4. Qb3 {[%clk 0:02:27]}  Qc8 {[%clk 0:02:55]} 5. Bf4 {[%clk 0:02:26]}  c6 {[%clk 0:02:54]} 6. e3 {[%clk 0:02:26]}  e6 {[%clk 0:02:54]} 7. Nbd2 {[%clk 0:02:26]}  Nbd7 {[%clk 0:02:55]} 8. h3 {[%clk 0:02:26]}  Be7 {[%clk 0:02:55]} 9. c4 {[%clk 0:02:25]}  O-O {[%clk 0:02:55]} 10. Be2 {[%clk 0:02:25]}  c5 {[%clk 0:02:55]} 11. O-O {[%clk 0:02:22]}  Nb6 {[%clk 0:02:51]} 12. Rac1 {[%clk 0:02:19]}  dxc4 {[%clk 0:02:47]} 13. Nxc4 {[%clk 0:02:19]}  Nxc4 {[%clk 0:02:48]} 14. Bxc4 {[%clk 0:02:17]}  b6 {[%clk 0:02:44]} 15. Qa4 {[%clk 0:02:05]}  Qb7 {[%clk 0:02:41]} 16. Ba6 {[%clk 0:01:55]}  Qd7 {[%clk 0:02:13]} 17. Bb5 {[%clk 0:01:50]}  Qd8 {[%clk 0:02:13]} 18. Rfd1 {[%clk 0:01:48]}  Nd5 {[%clk 0:02:05]} 19. dxc5 {[%clk 0:01:38]}  a6 {[%clk 0:01:39]} 20. Bf1 {[%clk 0:01:11]}  b5 {[%clk 0:01:37]} 21. Qd4 {[%clk 0:01:02]}  Nxf4 {[%clk 0:01:32]} 22. Qxf4 {[%clk 0:00:53]}  Qa5 {[%clk 0:01:20]} 23. a3 {[%clk 0:00:53]}  Rfd8 {[%clk 0:01:17]} 24. Nd4 {[%clk 0:00:46]}  Bf8 {[%clk 0:00:52]} 25. Nxf5 {[%clk 0:00:39]}  exf5 {[%clk 0:00:53]} 26. Qxf5 {[%clk 0:00:37]}  Rxd1 {[%clk 0:00:48]} 27. Rxd1 {[%clk 0:00:38]}  Qa4 {[%clk 0:00:48]} 28. Rc1 {[%clk 0:00:30]}  g6 {[%clk 0:00:45]} 29. Qd7 {[%clk 0:00:22]}  Qa5 {[%clk 0:00:40]} 30. c6 {[%clk 0:00:20]}  Qd8 {[%clk 0:00:38]} 31. Qxd8 {[%clk 0:00:16]}  Rxd8 {[%clk 0:00:39]} 32. a4 {[%clk 0:00:16]}  Rc8 {[%clk 0:00:28]} 33. axb5 {[%clk 0:00:15]}  axb5 {[%clk 0:00:29]} 34. Bxb5 {[%clk 0:00:15]}  Bd6 {[%clk 0:00:30]} 35. Kf1 {[%clk 0:00:14]}  Rb8 {[%clk 0:00:28]} 36. Ba6 {[%clk 0:00:11]}  Rb6 {[%clk 0:00:21]} 37. Bb7 {[%clk 0:00:10]}  Bc7 {[%clk 0:00:20]} 38. Rc2 {[%clk 0:00:10]}  Kf8 {[%clk 0:00:20]} 39. Ke2 {[%clk 0:00:10]}  Ke7 {[%clk 0:00:20]} 40. Kd3 {[%clk 0:00:11]}  Rb3+ {[%clk 0:00:19]} 41. Kc4 {[%clk 0:00:11]}  Rb6 {[%clk 0:00:18]} 42. b4 {[%clk 0:00:11]}  Bd6 {[%clk 0:00:17]} 43. b5 {[%clk 0:00:11]}  Kd8 {[%clk 0:00:17]} 44. Ra2 {[%clk 0:00:10]}  Kc7 {[%clk 0:00:17]} 45. Ra6 {[%clk 0:00:09]}  Rxa6 {[%clk 0:00:16]} 46. Bxa6 {[%clk 0:00:10]}  f5 {[%clk 0:00:15]} 47. Kd5 {[%clk 0:00:10]}  h6 {[%clk 0:00:15]} 48. Ke6 {[%clk 0:00:10]}  g5 {[%clk 0:00:16]} 49. Kxf5 {[%clk 0:00:11]}  Be7 {[%clk 0:00:15]} 50. Kg6 {[%clk 0:00:10]}  Bf8 {[%clk 0:00:16]} 51. f3 {[%clk 0:00:09]}  Bc5 {[%clk 0:00:17]} 52. e4 {[%clk 0:00:09]}  Bd6 {[%clk 0:00:18]} 53. Kxh6 {[%clk 0:00:08]}  Bf4 {[%clk 0:00:18]} 54. Kg6 {[%clk 0:00:09]} 1-0


[Site "https://www.chess.com"]

[Event "Titled Tuesday Blitz February 28 Early 2023"]
[White "Atakhan, Abtin"]
[Black "Vagman, Roy"]
[WhiteFideId "22502203"]
[BlackFideId "2828995"]
[WhiteElo "2189"]
[BlackElo "2188"]
[Result "0-1"]
[Round "05"]
[TimeControl "180+2"]
[Date "2023.02.28"]
[WhiteClock "0:00:02"]
[BlackClock "0:00:04"]

1. c4 {[%clk 0:00:56]}  c5 {[%clk 0:02:56]} 2. Nf3 {[%clk 0:00:56]}  Nc6 {[%clk 0:02:54]} 3. Nc3 {[%clk 0:00:57]}  Nf6 {[%clk 0:02:54]} 4. g3 {[%clk 0:00:57]}  g6 {[%clk 0:02:47]} 5. Bg2 {[%clk 0:00:57]}  Bg7 {[%clk 0:02:46]} 6. O-O {[%clk 0:00:57]}  O-O {[%clk 0:02:46]} 7. d4 {[%clk 0:00:58]}  cxd4 {[%clk 0:02:44]} 8. Nxd4 {[%clk 0:00:58]}  Nxd4 {[%clk 0:02:21]} 9. Qxd4 {[%clk 0:00:59]}  d6 {[%clk 0:02:21]} 10. Qd2 {[%clk 0:00:55]}  Nd7 {[%clk 0:02:20]} 11. b3 {[%clk 0:00:52]}  Nc5 {[%clk 0:02:19]} 12. Bb2 {[%clk 0:00:52]}  a5 {[%clk 0:02:15]} 13. Rad1 {[%clk 0:00:48]}  Bf5 {[%clk 0:02:08]} 14. Nd5 {[%clk 0:00:41]}  f6 {[%clk 0:00:52]} 15. Rfe1 {[%clk 0:00:37]}  h5 {[%clk 0:00:48]} 16. h4 {[%clk 0:00:33]}  Kh7 {[%clk 0:00:45]} 17. Nf4 {[%clk 0:00:32]}  Bh6 {[%clk 0:00:42]} 18. e4 {[%clk 0:00:21]}  Bg4 {[%clk 0:00:39]} 19. f3 {[%clk 0:00:21]}  Bd7 {[%clk 0:00:39]} 20. Qf2 {[%clk 0:00:20]}  Ra6 {[%clk 0:00:26]} 21. Nd5 {[%clk 0:00:20]}  e6 {[%clk 0:00:24]} 22. Nc3 {[%clk 0:00:16]}  Qe7 {[%clk 0:00:23]} 23. Ba3 {[%clk 0:00:12]}  Bc6 {[%clk 0:00:22]} 24. f4 {[%clk 0:00:12]}  b6 {[%clk 0:00:17]} 25. Bb2 {[%clk 0:00:10]}  e5 {[%clk 0:00:10]} 26. f5 {[%clk 0:00:08]}  Rg8 {[%clk 0:00:05]} 27. fxg6+ {[%clk 0:00:07]}  Rxg6 {[%clk 0:00:06]} 28. Kh2 {[%clk 0:00:07]}  Ra8 {[%clk 0:00:06]} 29. Bh3 {[%clk 0:00:07]}  Rag8 {[%clk 0:00:07]} 30. Bf5 {[%clk 0:00:06]}  Bd7 {[%clk 0:00:07]} 31. Nd5 {[%clk 0:00:06]}  Qf8 {[%clk 0:00:05]} 32. Bxg6+ {[%clk 0:00:05]}  Rxg6 {[%clk 0:00:06]} 33. Rf1 {[%clk 0:00:05]}  Bg7 {[%clk 0:00:04]} 34. Bc1 {[%clk 0:00:05]}  Nxe4 {[%clk 0:00:04]} 35. Qf3 {[%clk 0:00:02]}  Nxg3 {[%clk 0:00:04]} 36. Rg1 {[%clk 0:00:02]}  Nf5 {[%clk 0:00:04]} 37. Qxh5+ {[%clk 0:00:02]}  Rh6 {[%clk 0:00:04]} 38. Bxh6 {[%clk 0:00:02]}  Bxh6 {[%clk 0:00:04]} 39. Qg6+ {[%clk 0:00:02]}  Kh8 {[%clk 0:00:04]} 40. Nxf6 {[%clk 0:00:02]}  Be6 {[%clk 0:00:04]} 0-1


[Site "https://www.chess.com"]